[Event "*** MasterClass Titled Tuesday Blitz"]
[Site "Chess.com"]
[Date "2017.12.05"]
[Round "7"]
[White "Hasangatin_Ramil"]
[Black "tteshan"]
[Result "1-0"]
[WhiteElo "2388"]
[BlackElo "2013"]
[TimeControl "180+2"]
[EndTime "15:43:22 PST"]
[Termination "Hasangatin_Ramil won by resignation"]

1. d4 {[%clk 0:03:01.9]} 1... d5 {[%clk 0:03:00.6]} 2. Nc3 {[%clk 0:03:02.4]}
2... Nf6 {[%clk 0:03:00.7]} 3. Bg5 {[%clk 0:03:02.9]} 3... Nbd7 {[%clk
0:03:02.3]} 4. Nf3 {[%clk 0:03:03.1]} 4... h6 {[%clk 0:02:59.9]} 5. Bf4 {[%clk
0:03:02.8]} 5... c6 {[%clk 0:02:53.3]} 6. e3 {[%clk 0:03:02.4]} 6... e6 {[%clk
0:02:53.8]} 7. Bd3 {[%clk 0:03:01.7]} 7... Bb4 {[%clk 0:02:54.8]} 8. O-O {[%clk
0:02:58.5]} 8... O-O {[%clk 0:02:53.7]} 9. h3 {[%clk 0:02:57.9]} 9... c5 {[%clk
0:02:46.6]} 10. a3 {[%clk 0:02:56.8]} 10... Bxc3 {[%clk 0:02:46.5]} 11. bxc3
{[%clk 0:02:57.4]} 11... c4 {[%clk 0:02:48.1]} 12. Be2 {[%clk 0:02:58.5]} 12...
Ne4 {[%clk 0:02:49.5]} 13. Qe1 {[%clk 0:02:54.2]} 13... Qa5 {[%clk 0:02:49.9]}
14. Nd2 {[%clk 0:02:55.2]} 14... Nxc3 {[%clk 0:02:46]} 15. Bf3 {[%clk
0:02:54.2]} 15... Nb5 {[%clk 0:02:35.7]} 16. a4 {[%clk 0:02:51.9]} 16... Nc7
{[%clk 0:02:27.7]} 17. Nxc4 {[%clk 0:02:52.5]} 17... Qxe1 {[%clk 0:02:21.5]} 18.
Rfxe1 {[%clk 0:02:54.4]} 18... dxc4 {[%clk 0:02:22.9]} 19. Bxc7 {[%clk
0:02:54.4]} 19... Nf6 {[%clk 0:02:22.8]} 20. e4 {[%clk 0:02:40.7]} 20... Bd7
{[%clk 0:02:19.6]} 21. c3 {[%clk 0:02:41.6]} 21... Rac8 {[%clk 0:02:17.7]} 22.
Be5 {[%clk 0:02:42.3]} 22... Bc6 {[%clk 0:02:06.7]} 23. Bxf6 {[%clk 0:02:41.4]}
23... gxf6 {[%clk 0:02:06.9]} 24. d5 {[%clk 0:02:40.8]} 24... Bd7 {[%clk
0:02:05.4]} 25. Reb1 {[%clk 0:02:37]} 25... b6 {[%clk 0:02:03]} 26. Rd1 {[%clk
0:02:17.9]} 26... Rc7 {[%clk 0:01:53.1]} 27. Kf1 {[%clk 0:02:16.4]} 27... Rfc8
{[%clk 0:01:50.2]} 28. Ke2 {[%clk 0:02:17.5]} 28... Kf8 {[%clk 0:01:50.2]} 29.
Ke3 {[%clk 0:02:18.3]} 29... Be8 {[%clk 0:01:46.8]} 30. Bg4 {[%clk 0:02:18.3]}
30... Bd7 {[%clk 0:01:39.6]} 31. dxe6 {[%clk 0:02:19]} 31... fxe6 {[%clk
0:01:37.9]} 32. Rd6 {[%clk 0:02:09.9]} 32... Ke7 {[%clk 0:01:36.1]} 33. Rad1
{[%clk 0:02:10.8]} 33... Rg8 {[%clk 0:01:22.6]} 34. a5 {[%clk 0:02:01.6]} 34...
b5 {[%clk 0:01:20.9]} 35. f4 {[%clk 0:02:02.2]} 35... Rd8 {[%clk 0:01:15.5]} 36.
Bxe6 {[%clk 0:02:00.2]} 36... Rb7 {[%clk 0:00:37.8]} 37. Rxd7+ {[%clk
0:01:58.7]} 37... Rbxd7 {[%clk 0:00:38.3]} 38. Rxd7+ {[%clk 0:01:59]} 38... Rxd7
{[%clk 0:00:39.7]} 39. Bxd7 {[%clk 0:02:00.9]} 39... Kxd7 {[%clk 0:00:41.1]} 40.
Kd4 {[%clk 0:02:02.2]} 40... Kc6 {[%clk 0:00:42.3]} 41. a6 {[%clk 0:02:01.1]}
41... Kb6 {[%clk 0:00:36.5]} 42. e5 {[%clk 0:01:58.6]} 42... fxe5+ {[%clk
0:00:37.1]} 43. fxe5 {[%clk 0:01:59.2]} 43... Kc6 {[%clk 0:00:38.4]} 44. g4
{[%clk 0:01:57.8]} 44... b4 {[%clk 0:00:26.2]} 45. cxb4 {[%clk 0:01:55.8]} 45...
c3 {[%clk 0:00:26.5]} 46. Kxc3 {[%clk 0:01:55.8]} 46... Kd5 {[%clk 0:00:28]} 47.
b5 {[%clk 0:01:57.2]} 47... Kxe5 {[%clk 0:00:27.5]} 48. b6 {[%clk 0:01:58.5]}
48... Kd6 {[%clk 0:00:26]} 49. bxa7 {[%clk 0:01:58.9]} 1-0

[Event "*** MasterClass Titled Tuesday Blitz"]
[Site "Chess.com"]
[Date "2017.12.05"]
[Round "7"]
[White "GeorgMeier"]
[Black "tigra"]
[Result "1/2-1/2"]
[WhiteElo "2798"]
[BlackElo "2666"]
[TimeControl "180+2"]
[EndTime "15:43:27 PST"]
[Termination "Game drawn by agreement"]

1. Nf3 {[%clk 0:03:01.9]} 1... g6 {[%clk 0:02:57.3]} 2. g3 {[%clk 0:03:00.2]}
2... Bg7 {[%clk 0:02:57.8]} 3. d4 {[%clk 0:03:02.1]} 3... c5 {[%clk 0:02:58]} 4.
c3 {[%clk 0:02:59.7]} 4... cxd4 {[%clk 0:02:58.5]} 5. cxd4 {[%clk 0:03:01.6]}
5... d5 {[%clk 0:02:57.3]} 6. Nc3 {[%clk 0:03:02.6]} 6... Nc6 {[%clk 0:02:58.5]}
7. Bg2 {[%clk 0:03:03.6]} 7... a6 {[%clk 0:02:58.1]} 8. O-O {[%clk 0:03:00.5]}
8... b5 {[%clk 0:02:49.1]} 9. a4 {[%clk 0:02:08.9]} 9... bxa4 {[%clk 0:02:30]}
10. Nxd5 {[%clk 0:01:48.2]} 10... Bb7 {[%clk 0:02:01]} 11. Nc3 {[%clk
0:01:37.1]} 11... Nf6 {[%clk 0:01:57.5]} 12. d5 {[%clk 0:01:33.5]} 12... Nb8
{[%clk 0:01:56.4]} 13. Qxa4+ {[%clk 0:01:30.9]} 13... Nbd7 {[%clk 0:01:56.9]}
14. Ne5 {[%clk 0:01:29]} 14... O-O {[%clk 0:01:57.6]} 15. Nc6 {[%clk 0:01:27.3]}
15... Qe8 {[%clk 0:01:58.9]} 16. Qb4 {[%clk 0:00:44.3]} 16... Bxc6 {[%clk
0:01:47.7]} 17. dxc6 {[%clk 0:00:46.2]} 17... Ne5 {[%clk 0:01:47.1]} 18. Qc5
{[%clk 0:00:46.4]} 18... Nh5 {[%clk 0:01:27.9]} 19. Be3 {[%clk 0:00:30.7]} 19...
Ng4 {[%clk 0:01:22.9]} 20. Bd4 {[%clk 0:00:26.9]} 20... e5 {[%clk 0:01:23.6]}
21. Be3 {[%clk 0:00:25.4]} 21... f5 {[%clk 0:01:24.6]} 22. c7 {[%clk 0:00:21.4]}
22... e4 {[%clk 0:01:25.5]} 23. Bd4 {[%clk 0:00:15.8]} 23... Bxd4 {[%clk
0:01:24.2]} 24. Qxd4 {[%clk 0:00:17.7]} 24... Qf7 {[%clk 0:01:25.2]} 25. Nd5
{[%clk 0:00:18]} 25... Nhf6 {[%clk 0:01:25.2]} 26. Nb6 {[%clk 0:00:19]} 26...
Qxc7 {[%clk 0:01:22]} 27. Nxa8 {[%clk 0:00:20.2]} 27... Rxa8 {[%clk 0:01:23.9]}
28. Rfc1 {[%clk 0:00:21.5]} 28... Qe7 {[%clk 0:01:24.4]} 29. Ra5 {[%clk
0:00:21.4]} 29... Rd8 {[%clk 0:01:24.1]} 30. Qc5 {[%clk 0:00:21.7]} 30... Qe6
{[%clk 0:01:20]} 31. h3 {[%clk 0:00:20.6]} 31... Nh6 {[%clk 0:01:17.9]} 32. Qc6
{[%clk 0:00:19.8]} 32... Rd1+ {[%clk 0:01:18.2]} 33. Kh2 {[%clk 0:00:20.4]}
33... Nhg4+ {[%clk 0:01:18.7]} 34. hxg4 {[%clk 0:00:21.6]} 34... Nxg4+ {[%clk
0:01:20.6]} 35. Kh3 {[%clk 0:00:22.7]} 35... Nxf2+ {[%clk 0:01:21.7]} 36. Kh2
{[%clk 0:00:24.2]} 36... Ng4+ {[%clk 0:01:22.3]} 37. Kh3 {[%clk 0:00:25.7]}
37... Nf2+ {[%clk 0:00:46.5]} 38. Kh2 {[%clk 0:00:26.8]} 38... Ng4+ {[%clk
0:00:44.3]} 1/2-1/2

[Event "*** MasterClass Titled Tuesday Blitz"]
[Site "Chess.com"]
[Date "2017.12.05"]
[Round "7"]
[White "DiogenesSinopeus"]
[Black "R2D3"]
[Result "1-0"]
[WhiteElo "2351"]
[BlackElo "1697"]
[TimeControl "180+2"]
[EndTime "15:43:35 PST"]
[Termination "DiogenesSinopeus won by checkmate"]

1. e4 {[%clk 0:03:01.9]} 1... g6 {[%clk 0:02:56.5]} 2. d4 {[%clk 0:03:02.2]}
2... b6 {[%clk 0:02:57.6]} 3. Nc3 {[%clk 0:03:02.8]} 3... Bb7 {[%clk 0:02:58.3]}
4. Nf3 {[%clk 0:03:03.1]} 4... Bg7 {[%clk 0:02:56.7]} 5. Be3 {[%clk 0:03:00.5]}
5... Nf6 {[%clk 0:02:44.8]} 6. d5 {[%clk 0:02:47.9]} 6... O-O {[%clk 0:02:30.8]}
7. e5 {[%clk 0:02:36.3]} 7... Ng4 {[%clk 0:02:12.9]} 8. Bf4 {[%clk 0:02:24.3]}
8... d6 {[%clk 0:02:10.6]} 9. exd6 {[%clk 0:02:18.3]} 9... exd6 {[%clk
0:02:11.4]} 10. Qd2 {[%clk 0:02:01]} 10... Qf6 {[%clk 0:01:56.3]} 11. h3 {[%clk
0:01:33.4]} 11... Re8+ {[%clk 0:01:54.6]} 12. Be2 {[%clk 0:01:29.4]} 12... Ne5
{[%clk 0:01:42.1]} 13. Nxe5 {[%clk 0:01:30.2]} 13... dxe5 {[%clk 0:01:35.4]} 14.
Bg5 {[%clk 0:01:29.3]} 14... Qd6 {[%clk 0:01:27]} 15. O-O-O {[%clk 0:01:19.2]}
15... Nd7 {[%clk 0:01:26.1]} 16. Ne4 {[%clk 0:00:57.7]} 16... Qf8 {[%clk
0:01:12.7]} 17. Bb5 {[%clk 0:00:58.7]} 17... Red8 {[%clk 0:00:41.5]} 18. Bxd8
{[%clk 0:00:45]} 18... Rxd8 {[%clk 0:00:43.4]} 19. h4 {[%clk 0:00:40.5]} 19...
f5 {[%clk 0:00:32.7]} 20. Ng5 {[%clk 0:00:39.7]} 20... Nc5 {[%clk 0:00:30.5]}
21. Kb1 {[%clk 0:00:34.1]} 21... h6 {[%clk 0:00:31.5]} 22. b4 {[%clk 0:00:22.5]}
22... Rxd5 {[%clk 0:00:30.8]} 23. Qc3 {[%clk 0:00:13.6]} 23... Ne4 {[%clk
0:00:24.8]} 24. Nxe4 {[%clk 0:00:12.3]} 24... Rxb5 {[%clk 0:00:20.6]} 25. Qc4+
{[%clk 0:00:10]} 25... Rd5 {[%clk 0:00:18.3]} 26. Nc3 {[%clk 0:00:07.9]} 26...
Kh8 {[%clk 0:00:16.3]} 27. Nxd5 {[%clk 0:00:08.6]} 27... Bxd5 {[%clk 0:00:18.1]}
28. Qxd5 {[%clk 0:00:09.1]} 28... Qxb4+ {[%clk 0:00:18.7]} 29. Qb3 {[%clk
0:00:08.2]} 29... Qc5 {[%clk 0:00:18.4]} 30. Rd8+ {[%clk 0:00:08.8]} 30... Kh7
{[%clk 0:00:19.1]} 31. Qg8# {[%clk 0:00:09.7]} 1-0

[Event "*** MasterClass Titled Tuesday Blitz"]
[Site "Chess.com"]
[Date "2017.12.05"]
[Round "7"]
[White "Sulvyfex"]
[Black "aa175"]
[Result "0-1"]
[WhiteElo "1335"]
[BlackElo "1870"]
[TimeControl "180+2"]
[EndTime "15:44:00 PST"]
[Termination "aa175 won by checkmate"]

1. e4 {[%clk 0:03:00.6]} 1... e5 {[%clk 0:02:59.8]} 2. Nf3 {[%clk 0:02:58.3]}
2... Nc6 {[%clk 0:03:00.4]} 3. Bb5 {[%clk 0:02:56.1]} 3... Nge7 {[%clk
0:02:51.9]} 4. O-O {[%clk 0:02:53.4]} 4... g6 {[%clk 0:02:39.8]} 5. c3 {[%clk
0:02:51.4]} 5... Bg7 {[%clk 0:02:11.2]} 6. d4 {[%clk 0:02:48.9]} 6... d6 {[%clk
0:02:09]} 7. d5 {[%clk 0:02:46.6]} 7... a6 {[%clk 0:02:08.7]} 8. Ba4 {[%clk
0:02:43.9]} 8... b5 {[%clk 0:02:06.8]} 9. Bc2 {[%clk 0:02:40.4]} 9... Na5 {[%clk
0:01:57.5]} 10. a4 {[%clk 0:02:27.8]} 10... Bd7 {[%clk 0:01:46.4]} 11. b4 {[%clk
0:02:25.2]} 11... Nc4 {[%clk 0:01:45.5]} 12. Nbd2 {[%clk 0:02:16.5]} 12... Nxd2
{[%clk 0:01:37.7]} 13. Qxd2 {[%clk 0:02:16.9]} 13... O-O {[%clk 0:01:34.8]} 14.
Rd1 {[%clk 0:02:13.9]} 14... Qb8 {[%clk 0:01:30.2]} 15. Qe2 {[%clk 0:02:11.9]}
15... Qb7 {[%clk 0:01:18.3]} 16. c4 {[%clk 0:02:09.9]} 16... f5 {[%clk
0:00:53.8]} 17. c5 {[%clk 0:02:07.2]} 17... fxe4 {[%clk 0:00:37.6]} 18. Bxe4
{[%clk 0:01:48.4]} 18... Bf5 {[%clk 0:00:21.4]} 19. c6 {[%clk 0:01:43.9]} 19...
Qb8 {[%clk 0:00:14.7]} 20. Bg5 {[%clk 0:01:29.6]} 20... Rf7 {[%clk 0:00:06.6]}
21. Bxe7 {[%clk 0:01:19.6]} 21... Bxe4 {[%clk 0:00:06.7]} 22. Qxe4 {[%clk
0:01:02.5]} 22... Rxe7 {[%clk 0:00:07.7]} 23. Qd3 {[%clk 0:01:02.8]} 23... e4
{[%clk 0:00:07.7]} 24. Qe3 {[%clk 0:01:04.4]} 24... Bxa1 {[%clk 0:00:08.1]} 25.
Ng5 {[%clk 0:01:01.6]} 25... Bf6 {[%clk 0:00:07.7]} 26. Ne6 {[%clk 0:01:00.7]}
26... Rxe6 {[%clk 0:00:05.7]} 27. dxe6 {[%clk 0:01:00.8]} 27... Qe8 {[%clk
0:00:06.9]} 28. Qxe4 {[%clk 0:00:59.4]} 28... Qe7 {[%clk 0:00:08.1]} 29. Qd5
{[%clk 0:00:58.6]} 29... Rb8 {[%clk 0:00:08.1]} 30. a5 {[%clk 0:00:58.6]} 30...
Re8 {[%clk 0:00:08.6]} 31. Re1 {[%clk 0:00:59.6]} 31... Kg7 {[%clk 0:00:09.5]}
32. f3 {[%clk 0:01:00.1]} 32... Be5 {[%clk 0:00:10.2]} 33. f4 {[%clk 0:01:00.6]}
33... Bf6 {[%clk 0:00:11.3]} 34. g3 {[%clk 0:01:01]} 34... Qf8 {[%clk
0:00:12.1]} 35. Qd3 {[%clk 0:00:56.6]} 35... Re7 {[%clk 0:00:13.3]} 36. Qe3
{[%clk 0:00:57.4]} 36... Qe8 {[%clk 0:00:14.2]} 37. Qa7 {[%clk 0:00:57.8]} 37...
Qxc6 {[%clk 0:00:14.9]} 38. Qb8 {[%clk 0:00:41.7]} 38... Bd4+ {[%clk 0:00:14.7]}
39. Kf1 {[%clk 0:00:41.1]} 39... Qf3# {[%clk 0:00:15.7]} 0-1

[Event "*** MasterClass Titled Tuesday Blitz"]
[Site "Chess.com"]
[Date "2017.12.05"]
[Round "7"]
[White "toad"]
[Black "ppchess2017"]
[Result "0-1"]
[WhiteElo "2139"]
[BlackElo "1804"]
[TimeControl "180+2"]
[EndTime "15:44:01 PST"]
[Termination "ppchess2017 won by checkmate"]

1. d4 {[%clk 0:03:01.9]} 1... d5 {[%clk 0:03:00]} 2. c4 {[%clk 0:03:03.3]} 2...
Nf6 {[%clk 0:03:01]} 3. cxd5 {[%clk 0:03:04]} 3... c6 {[%clk 0:03:02.1]} 4. dxc6
{[%clk 0:03:04.7]} 4... Nxc6 {[%clk 0:03:03.3]} 5. e3 {[%clk 0:03:05.6]} 5... e5
{[%clk 0:03:04.3]} 6. Nf3 {[%clk 0:03:06.1]} 6... exd4 {[%clk 0:03:04.4]} 7.
Nxd4 {[%clk 0:03:07]} 7... Bb4+ {[%clk 0:03:02.7]} 8. Bd2 {[%clk 0:03:05.5]}
8... O-O {[%clk 0:02:45.6]} 9. Nxc6 {[%clk 0:03:02.3]} 9... Bxd2+ {[%clk
0:02:46.1]} 10. Qxd2 {[%clk 0:02:52]} 10... bxc6 {[%clk 0:02:46.6]} 11. Qxd8
{[%clk 0:02:53.1]} 11... Rxd8 {[%clk 0:02:47]} 12. Nc3 {[%clk 0:02:49.1]} 12...
Rb8 {[%clk 0:02:47.6]} 13. b3 {[%clk 0:02:49]} 13... Bf5 {[%clk 0:02:31.8]} 14.
Bc4 {[%clk 0:02:45.3]} 14... Bd3 {[%clk 0:02:31.7]} 15. Rd1 {[%clk 0:02:14]}
15... Bxc4 {[%clk 0:02:26.3]} 16. Rxd8+ {[%clk 0:02:15.9]} 16... Rxd8 {[%clk
0:02:24.8]} 17. bxc4 {[%clk 0:02:17.8]} 17... Rd3 {[%clk 0:02:24.9]} 18. Nd1
{[%clk 0:02:12.1]} 18... Ra3 {[%clk 0:02:11.9]} 19. O-O {[%clk 0:02:13]} 19...
Rxa2 {[%clk 0:02:12.7]} 20. f3 {[%clk 0:02:06]} 20... a5 {[%clk 0:02:10.6]} 21.
e4 {[%clk 0:02:02.5]} 21... a4 {[%clk 0:02:09.1]} 22. Nc3 {[%clk 0:02:03.1]}
22... Ra3 {[%clk 0:02:09.9]} 23. Rc1 {[%clk 0:01:59.8]} 23... Nd7 {[%clk
0:02:08.8]} 24. Kf2 {[%clk 0:01:55.1]} 24... Nc5 {[%clk 0:02:09.5]} 25. Rc2
{[%clk 0:01:46.2]} 25... g6 {[%clk 0:01:56.2]} 26. Na2 {[%clk 0:01:18.3]} 26...
Kg7 {[%clk 0:01:44.1]} 27. Nb4 {[%clk 0:01:18.7]} 27... Rb3 {[%clk 0:01:34.3]}
28. Nxc6 {[%clk 0:01:09.1]} 28... a3 {[%clk 0:01:33.4]} 29. Nd4 {[%clk
0:01:07.5]} 29... Rb2 {[%clk 0:01:24.5]} 30. Ke3 {[%clk 0:01:01.5]} 30... a2
{[%clk 0:01:25.3]} 31. Rxb2 {[%clk 0:01:00.8]} 31... a1=Q {[%clk 0:01:22.1]} 32.
Rb5 {[%clk 0:00:43.2]} 32... Qc3+ {[%clk 0:01:21.8]} 33. Kf4 {[%clk 0:00:32.8]}
33... Qxd4 {[%clk 0:01:22.6]} 34. Kg3 {[%clk 0:00:31.2]} 34... Qxc4 {[%clk
0:01:21.1]} 35. Rb6 {[%clk 0:00:30.6]} 35... Nxe4+ {[%clk 0:01:18.1]} 36. fxe4
{[%clk 0:00:30.9]} 36... Qc7+ {[%clk 0:01:18.7]} 37. Rd6 {[%clk 0:00:29.6]}
37... Qxd6+ {[%clk 0:01:19.3]} 38. Kh3 {[%clk 0:00:28.9]} 38... f5 {[%clk
0:01:17.4]} 39. exf5 {[%clk 0:00:29]} 39... gxf5 {[%clk 0:01:17.6]} 40. g3
{[%clk 0:00:29.2]} 40... Qd3 {[%clk 0:01:15.1]} 41. Kh4 {[%clk 0:00:29.5]} 41...
Kg6 {[%clk 0:01:15.6]} 42. h3 {[%clk 0:00:26.6]} 42... Qe4+ {[%clk 0:01:13.8]}
43. g4 {[%clk 0:00:27.8]} 43... fxg4 {[%clk 0:01:14]} 44. hxg4 {[%clk 0:00:29]}
44... h5 {[%clk 0:01:13.1]} 45. Kh3 {[%clk 0:00:29.5]} 45... Qxg4+ {[%clk
0:01:13.3]} 46. Kh2 {[%clk 0:00:30.9]} 46... Kf5 {[%clk 0:01:13.6]} 47. Kh1
{[%clk 0:00:32.2]} 47... Kf4 {[%clk 0:01:13.5]} 48. Kh2 {[%clk 0:00:34.1]} 48...
Kf3 {[%clk 0:01:11.6]} 49. Kh1 {[%clk 0:00:36]} 49... Qg2# {[%clk 0:01:11.1]}
0-1

[Event "*** MasterClass Titled Tuesday Blitz"]
[Site "Chess.com"]
[Date "2017.12.05"]
[Round "7"]
[White "chito89"]
[Black "bascheyaro"]
[Result "1-0"]
[WhiteElo "2620"]
[BlackElo "2618"]
[TimeControl "180+2"]
[EndTime "15:44:03 PST"]
[Termination "chito89 won by checkmate"]

1. d4 {[%clk 0:03:01.9]} 1... d5 {[%clk 0:02:59.4]} 2. c4 {[%clk 0:03:02]} 2...
c6 {[%clk 0:03:00.3]} 3. Nf3 {[%clk 0:03:02.4]} 3... Nf6 {[%clk 0:03:01.1]} 4.
g3 {[%clk 0:03:02.5]} 4... g6 {[%clk 0:03:01.2]} 5. Bg2 {[%clk 0:03:03.1]} 5...
Bg7 {[%clk 0:03:02.7]} 6. O-O {[%clk 0:03:04.2]} 6... O-O {[%clk 0:03:03.8]} 7.
Qb3 {[%clk 0:03:01.1]} 7... Nbd7 {[%clk 0:02:51.4]} 8. cxd5 {[%clk 0:02:56.3]}
8... cxd5 {[%clk 0:02:51.9]} 9. Nc3 {[%clk 0:02:57.7]} 9... e6 {[%clk
0:02:52.2]} 10. Bf4 {[%clk 0:02:57.6]} 10... Nb8 {[%clk 0:02:51.8]} 11. Ne5
{[%clk 0:02:52.9]} 11... Nc6 {[%clk 0:02:51.8]} 12. Nxc6 {[%clk 0:02:52.8]}
12... bxc6 {[%clk 0:02:53.7]} 13. Na4 {[%clk 0:02:54]} 13... Ba6 {[%clk
0:02:53.3]} 14. Qc2 {[%clk 0:02:54.3]} 14... Nd7 {[%clk 0:02:41.6]} 15. Rfd1
{[%clk 0:02:51.5]} 15... Rc8 {[%clk 0:02:37.6]} 16. Bd6 {[%clk 0:02:43.5]} 16...
Re8 {[%clk 0:02:38.4]} 17. Nc5 {[%clk 0:02:43]} 17... Nxc5 {[%clk 0:02:39.1]}
18. Bxc5 {[%clk 0:02:44.4]} 18... e5 {[%clk 0:02:39.7]} 19. dxe5 {[%clk
0:02:42.7]} 19... Rxe5 {[%clk 0:02:36.5]} 20. e3 {[%clk 0:02:38.8]} 20... Qc7
{[%clk 0:02:24.5]} 21. Rac1 {[%clk 0:02:33.1]} 21... Qb7 {[%clk 0:02:06.5]} 22.
Bd4 {[%clk 0:02:23.3]} 22... Ree8 {[%clk 0:02:07.5]} 23. b3 {[%clk 0:02:16.5]}
23... Bf8 {[%clk 0:01:59.2]} 24. Bb2 {[%clk 0:02:10.1]} 24... Bg7 {[%clk
0:01:53.8]} 25. Bxg7 {[%clk 0:02:09.5]} 25... Kxg7 {[%clk 0:01:55.7]} 26. Rd4
{[%clk 0:02:08.7]} 26... Qe7 {[%clk 0:01:51.6]} 27. h4 {[%clk 0:01:54.3]} 27...
Bb7 {[%clk 0:01:45.7]} 28. Ra4 {[%clk 0:01:51.7]} 28... Ba8 {[%clk 0:01:44.4]}
29. Ra5 {[%clk 0:01:46.3]} 29... Rcd8 {[%clk 0:01:41.9]} 30. Qb2+ {[%clk
0:01:45.2]} 30... f6 {[%clk 0:01:32.3]} 31. Qd4 {[%clk 0:01:46.4]} 31... Rd7
{[%clk 0:01:33.5]} 32. b4 {[%clk 0:01:36.9]} 32... Rb7 {[%clk 0:01:27.8]} 33. a3
{[%clk 0:01:37.2]} 33... Rb6 {[%clk 0:01:28]} 34. Rac5 {[%clk 0:01:25.9]} 34...
Rd8 {[%clk 0:01:25.3]} 35. Qf4 {[%clk 0:01:15.5]} 35... Qe5 {[%clk 0:01:24.7]}
36. Qg4 {[%clk 0:01:10.6]} 36... Bb7 {[%clk 0:01:23.2]} 37. R1c3 {[%clk
0:01:09.8]} 37... Bc8 {[%clk 0:01:16]} 38. Qd1 {[%clk 0:01:09]} 38... Bd7 {[%clk
0:01:07.4]} 39. e4 {[%clk 0:01:09.7]} 39... Be8 {[%clk 0:01:02.9]} 40. exd5
{[%clk 0:01:10.1]} 40... cxd5 {[%clk 0:01:03.5]} 41. Re3 {[%clk 0:01:11.6]}
41... Qb8 {[%clk 0:00:57.1]} 42. Re7+ {[%clk 0:01:11.9]} 42... Kh8 {[%clk
0:00:48]} 43. Rcc7 {[%clk 0:01:11.3]} 43... Rbd6 {[%clk 0:00:19.1]} 44. Rxh7+
{[%clk 0:01:10]} 44... Kg8 {[%clk 0:00:20.6]} 45. Rcg7+ {[%clk 0:00:59.7]} 45...
Kf8 {[%clk 0:00:21.6]} 46. Rb7 {[%clk 0:01:00.7]} 46... Qc8 {[%clk 0:00:22.3]}
47. Rh8# {[%clk 0:01:00.4]} 1-0

[Event "*** MasterClass Titled Tuesday Blitz"]
[Site "Chess.com"]
[Date "2017.12.05"]
[Round "7"]
[White "Winehouse83"]
[Black "krzyzan94"]
[Result "0-1"]
[WhiteElo "2392"]
[BlackElo "2604"]
[TimeControl "180+2"]
[EndTime "15:44:04 PST"]
[Termination "krzyzan94 won by resignation"]

1. d4 {[%clk 0:03:01.9]} 1... Nf6 {[%clk 0:03:00.8]} 2. c4 {[%clk 0:03:03]} 2...
g6 {[%clk 0:03:02.4]} 3. Nc3 {[%clk 0:03:02.1]} 3... d5 {[%clk 0:03:03.8]} 4.
Nf3 {[%clk 0:03:02.8]} 4... Bg7 {[%clk 0:03:04.2]} 5. Bf4 {[%clk 0:03:04.3]}
5... O-O {[%clk 0:03:03.4]} 6. Rc1 {[%clk 0:03:05.2]} 6... c6 {[%clk 0:03:04.3]}
7. e3 {[%clk 0:03:05.7]} 7... Be6 {[%clk 0:02:42.9]} 8. Qb3 {[%clk 0:02:49.3]}
8... Nbd7 {[%clk 0:02:23.6]} 9. h3 {[%clk 0:02:46.7]} 9... dxc4 {[%clk
0:02:19.6]} 10. Bxc4 {[%clk 0:02:47.1]} 10... Bxc4 {[%clk 0:02:20.7]} 11. Qxc4
{[%clk 0:02:48.3]} 11... Nb6 {[%clk 0:02:22.6]} 12. Qe2 {[%clk 0:02:38.4]} 12...
Nfd5 {[%clk 0:02:22.7]} 13. Be5 {[%clk 0:02:36]} 13... Qd7 {[%clk 0:02:02.1]}
14. Bxg7 {[%clk 0:02:33.5]} 14... Kxg7 {[%clk 0:02:04]} 15. Ne5 {[%clk 0:02:35]}
15... Qe6 {[%clk 0:02:05.5]} 16. O-O {[%clk 0:02:20.5]} 16... f6 {[%clk
0:02:05.4]} 17. Nd3 {[%clk 0:02:16.8]} 17... Nd7 {[%clk 0:01:49.9]} 18. Nxd5
{[%clk 0:02:12.9]} 18... Qxd5 {[%clk 0:01:49.1]} 19. b3 {[%clk 0:02:11.8]} 19...
Rfd8 {[%clk 0:01:49.4]} 20. Nc5 {[%clk 0:02:08.4]} 20... Nxc5 {[%clk 0:01:47.6]}
21. Rxc5 {[%clk 0:02:10.3]} 21... Qe6 {[%clk 0:01:46.9]} 22. Qc4 {[%clk
0:02:07.3]} 22... Qxc4 {[%clk 0:01:46.3]} 23. Rxc4 {[%clk 0:02:09.2]} 23... Rd5
{[%clk 0:01:47.1]} 24. Rfc1 {[%clk 0:02:10]} 24... Rad8 {[%clk 0:01:47.5]} 25.
Rc5 {[%clk 0:02:05.6]} 25... Kf7 {[%clk 0:01:45.1]} 26. Rxd5 {[%clk 0:02:05.3]}
26... Rxd5 {[%clk 0:01:47]} 27. Kf1 {[%clk 0:02:05.4]} 27... Ra5 {[%clk
0:01:44.7]} 28. Rc2 {[%clk 0:02:06.1]} 28... Ke6 {[%clk 0:01:46]} 29. Ke2 {[%clk
0:02:07]} 29... Kd5 {[%clk 0:01:46.5]} 30. Kd3 {[%clk 0:02:08.1]} 30... e5
{[%clk 0:01:45]} 31. e4+ {[%clk 0:02:01.8]} 31... Kd6 {[%clk 0:01:45.5]} 32. Kc4
{[%clk 0:01:57.8]} 32... exd4 {[%clk 0:01:21.8]} 33. Kxd4 {[%clk 0:01:58.2]}
33... Rg5 {[%clk 0:01:22.3]} 34. g3 {[%clk 0:01:59.2]} 34... a5 {[%clk
0:01:17.7]} 35. a4 {[%clk 0:01:52.2]} 35... h5 {[%clk 0:01:12.7]} 36. Rc3 {[%clk
0:01:48.4]} 36... b5 {[%clk 0:00:56.7]} 37. h4 {[%clk 0:01:20]} 37... Rg4 {[%clk
0:00:48.2]} 38. Ke3 {[%clk 0:01:08.4]} 38... bxa4 {[%clk 0:00:43.8]} 39. bxa4
{[%clk 0:01:08.9]} 39... f5 {[%clk 0:00:39.6]} 40. Rd3+ {[%clk 0:01:06.8]} 40...
Ke6 {[%clk 0:00:36.4]} 41. exf5+ {[%clk 0:01:02.3]} 41... gxf5 {[%clk
0:00:36.3]} 42. Rd4 {[%clk 0:01:03.6]} 42... Ke5 {[%clk 0:00:34.8]} 43. Rxg4
{[%clk 0:00:54]} 43... fxg4 {[%clk 0:00:36.7]} 44. f4+ {[%clk 0:00:55.1]} 44...
gxf3 {[%clk 0:00:37.6]} 45. Kxf3 {[%clk 0:00:56.7]} 45... Kf5 {[%clk 0:00:32.5]}
46. g4+ {[%clk 0:00:51.2]} 46... hxg4+ {[%clk 0:00:32.9]} 47. Kg3 {[%clk
0:00:52.6]} 47... c5 {[%clk 0:00:32.9]} 48. h5 {[%clk 0:00:54.1]} 48... c4
{[%clk 0:00:34.4]} 49. h6 {[%clk 0:00:55.6]} 49... Kg6 {[%clk 0:00:35.7]} 50.
Kxg4 {[%clk 0:00:57.2]} 50... c3 {[%clk 0:00:37.3]} 0-1